Workbook

Sheet Лист1
A2: Kрад
B4: 11.6 | G4: =(B4*F18)/D6 -> 2.312500016 | I4: =(B4*L20)/D6 -> 2.688600798
A5: Vот | B5: 110895.1
A6: ГСОП | B6: 3445.4 | D6: =B5*B6 -> 382077977.5
A9: lвер J | B9: МДж/год*м2 | C9: Ajl,м2 | D9: 1й этаж | I9: Qрад1 | J9: Qрад2
A10: СЗ | B10: 576 | C10: 4206.86 | D10: 194.45 | F10: =B10*C10*A23*A27 -> 13860425.78 | K10: =B10*A22*A26*D10 -> 2352067.2 | L10: =B10*C10*A23*A27 -> 13860425.78
A11: СВ | B11: 576 | C11: 2080.57 | D11: 94.27 | F11: =B11*C11*A23*A27 -> 6854895.59 | K11: =B11*A22*A26*D11 -> 1140289.92 | L11: =B11*C11*A23*A27 -> 6854895.59
A12: В | B12: 804 | C12: 975.79 | D12: 58.23 | F12: =B12*C12*A23*A27 -> 4487541.115 | K12: =B12*A22*A26*D12 -> 983155.32 | L12: =B12*C12*A23*A27 -> 4487541.115
A13: ЮВ | B13: 1160 | C13: 4537.22 | D13: 194.44 | F13: =B13*C13*A23*A27 -> 30105362.14 | K13: =B13*A22*A26*D13 -> 4736558.4 | L13: =B13*C13*A23*A27 -> 30105362.14
A14: ЮЗ | B14: 1160 | C14: 2071.57 | D14: 89.88 | F14: =B14*C14*A23*A27 -> 13745281.26 | K14: =B14*A22*A26*D14 -> 2189476.8 | L14: =B14*C14*A23*A27 -> 13745281.26
A15: З | B15: 804 | C15: 1490.86 | D15: 58.35 | F15: =B15*C15*A23*A27 -> 6856286.237 | K15: =B15*A22*A26*D15 -> 985181.4 | L15: =B15*C15*A23*A27 -> 6856286.237
A16: С | B16: 524 | C16: 24.24 | F16: =B16*C16*A23*A27 -> 72654.0672 | L16: =B16*C16*A23*A27 -> 72654.0672
A17: Ю | B17: 1349 | C17: 24.12 | F17: =B17*C17*A23*A27 -> 186116.6736 | L17: =B17*C17*A23*A27 -> 186116.6736
F18: =SUM(F10:F17) -> 76168562.87 | K18: =SUM(K10:K15) -> 12386729.04 | L18: =SUM(L10:L17) -> 76168562.87
A19: lгор | B19: МДж/год*м2 | C19: 1187
K20: =K18+L18 -> 88555291.91 | L20: =K20+C19 -> 88556478.91
A21: gjl
A22: 35 | B22: 1 этаж
A23: 22 | B23: 2-24 этажи
A26: 0.6 | B26: 1 этаж
A27: 0.26 | B27: 2,24 этажи
